Workbook

Sheet Scenario Summaries
A3: scenario summaries
B5: Inputs | G5: Results
A7: scenario 1 | B7: Assumptions | G7: Revenues | K7: Revenue Changes for Scenario 1
B8: July 2010 through June 2011 bill frequency data | G8: revenues with minimum bill | H8: : | I8: =ROUND(619017970.514264,-3) -> 619018000 | K8: increased revenues with minimum bill | L8: : | M8: =I8-I9 -> 269000
B9: (current) customer charge | C9: : | D9: 4 | G9: revenues with no minimum bill | H9: : | I9: =ROUND(618748757.785942,-3) -> 618749000
B10: (current) minimum bill | C10: : | D10: 7
B11: (current) energy rates | C11: : | D11: 0.084004 | E11: 1st 400 kWh May-Sept | G11: revenues if 6% drop in usage in all tiers | H11: : | I11: =ROUND(601171349.279336,-3) -> 601171000 | K11: Lost revenue* from 6% efficiency scenario | L11: : | M11: =ROUND(17846621.2349277,-3) -> 17847000
D12: 0.103481 | E12: next 66 kWh May-Sept | G12: revenues if 20% drop in tiers 2 & 3 | H12: : | I12: =ROUND(563817896.592554,-3) -> 563818000 | K12: Lost revenue* from 20% efficiency scenario | L12: : | M12: =ROUND(56550871.7198881,-3) -> 56551000
D13: 0.128709 | E13: all add'l kWh May-Sept | K13: (*Calculated using minimum bill scenario)
D14: 0.087035 | E14: all kWh Oct-April | G14: Revenues from Customer Charge | H14: : | I14: =ROUND(32316296.0616,-3) -> 32316000
A17: scenario 2 | B17: Assumptions | G17: Revenues | K17: Revenue Changes for Scenario 2
B18: July 2010 through June 2011 bill frequency data | G18: revenues with minimum bill | H18: : | I18: =ROUND(627419756.355084,-3) -> 627420000 | K18: increased revenues with minimum bill | L18: : | M18: =I18-I19 -> 592000
B19: customer charge | C19: : | D19: 5 | G19: revenues with no minimum bill | H19: : | I19: =ROUND(626827831.801342,-3) -> 626828000
B20: minimum bill | C20: : | D20: 10
B21: energy rates | C21: : | D21: 0.084004 | E21: 1st 400 kWh May-Sept | G21: revenues if 6% drop in usage in all tiers | H21: : | I21: =ROUND(609578524.391621,-3) -> 609579000 | K21: Lost revenue* from 6% efficiency scenario | L21: : | M21: =ROUND(17841231.9634633,-3) -> 17841000
D22: 0.103481 | E22: next 66 kWh May-Sept | G22: revenues if 20% drop in tiers 2 & 3 | H22: : | I22: =ROUND(572219682.433374,-3) -> 572220000 | K22: Lost revenue* from 20% efficiency scenario | L22: : | M22: =ROUND(56550871.7198881,-3) -> 56551000
D23: 0.128709 | E23: all add'l kWh May-Sept | K23: (*Calculated using minimum bill scenario)
D24: 0.087035 | E24: all kWh Oct-April | G24: Revenues from Customer Charge | H24: : | I24: =ROUND(40395370.077,-3) -> 40395000
A27: scenario 3 | B27: Assumptions | G27: Revenues | K27: Revenue Changes for Scenario 3
B28: July 2010 through June 2011 bill frequency data | G28: revenues with minimum bill | H28: : | I28: =ROUND(652098834.266533,-3) -> 652099000 | K28: increased revenues with minimum bill | L28: : | M28: =I28-I29 -> 1034000
B29: customer charge | C29: : | D29: 8 | G29: revenues with no minimum bill | H29: : | I29: =ROUND(651065053.847542,-3) -> 651065000
B30: minimum bill | C30: : | D30: 15
B31: energy rates | C31: : | D31: 0.084004 | E31: 1st 400 kWh May-Sept | G31: revenues if 6% drop in usage in all tiers | H31: : | I31: =ROUND(634265426.473492,-3) -> 634265000 | K31: Lost revenue* from 6% efficiency scenario | L31: : | M31: =ROUND(17833407.7930405,-3) -> 17833000
D32: 0.103481 | E32: next 66 kWh May-Sept | G32: revenues if 20% drop in tiers 2 & 3 | H32: : | I32: =ROUND(596898760.344823,-3) -> 596899000 | K32: Lost revenue* from 20% efficiency scenario | L32: : | M32: =ROUND(56550871.7198881,-3) -> 56551000
D33: 0.128709 | E33: all add'l kWh May-Sept | K33: (*Calculated using minimum bill scenario)
D34: 0.087035 | E34: all kWh Oct-April | G34: Revenues from Customer Charge | H34: : | I34: =ROUND(64632592.1232,-3) -> 64633000
A37: scenario 4 | B37: Assumptions | G37: Revenues | K37: Revenue Changes for Scenario 4
B38: July 2010 through June 2011 bill frequency data | G38: revenues with minimum bill | H38: : | I38: =ROUND(667223201.878342,-3) -> 667223000 | K38: increased revenues with minimum bill | L38: : | M38: =I38-I39 -> 0
B39: customer charge | C39: : | D39: 10 | G39: revenues with no minimum bill | H39: : | I39: =ROUND(667223201.878342,-3) -> 667223000
B40: minimum bill | C40: : | D40: 0
B41: energy rates | C41: : | D41: 0.084004 | E41: 1st 400 kWh May-Sept | G41: revenues if 6% drop in usage in all tiers | H41: : | I41: =ROUND(649372660.95492,-3) -> 649373000 | K41: Lost revenue* from 6% efficiency scenario | L41: : | M41: =ROUND(17850540.9234219,-3) -> 17851000
D42: 0.103481 | E42: next 66 kWh May-Sept | G42: revenues if 20% drop in tiers 2 & 3 | H42: : | I42: =ROUND(612023127.956632,-3) -> 612023000 | K42: Lost revenue* from 20% efficiency scenario | L42: : | M42: =ROUND(56550871.7198881,-3) -> 56551000
D43: 0.128709 | E43: all add'l kWh May-Sept | K43: (*Calculated using minimum bill scenario)
D44: 0.087035 | E44: all kWh Oct-April | G44: Revenues from Customer Charge | H44: : | I44: =ROUND(80790740.1539999,-3) -> 80791000
A47: scenario 5 | B47: Assumptions | G47: Revenues | K47: Revenue Changes for Scenario 5
B48: July 2010 through June 2011 bill frequency data | G48: revenues with minimum bill | H48: : | I48: =ROUND(817736350.785244,-3) -> 817736000 | K48: increased revenues with minimum bill | L48: : | M48: 0
B49: customer charge | C49: : | D49: 28.63 | G49: revenues with no minimum bill | H49: : | I49: =ROUND(817736350.785244,-3) -> 817736000
B50: minimum bill | C50: : | D50: 0
B51: energy rates | C51: : | D51: 0.084004 | E51: 1st 400 kWh May-Sept | G51: revenues if 6% drop in usage in all tiers | H51: : | I51: =ROUND(799885809.861822,-3) -> 799886000 | K51: Lost revenue* from 6% efficiency scenario | L51: : | M51: =ROUND(17850540.9234221,-3) -> 17851000
D52: 0.103481 | E52: next 66 kWh May-Sept | G52: revenues if 20% drop in tiers 2 & 3 | H52: : | I52: =ROUND(762536276.863534,-3) -> 762536000 | K52: Lost revenue* from 20% efficiency scenario | L52: : | M52: =ROUND(56550871.7198881,-3) -> 56551000
D53: 0.128709 | E53: all add'l kWh May-Sept | K53: (*Calculated using minimum bill scenario)
D54: 0.087035 | E54: all kWh Oct-April | G54: Revenues from Customer Charge | H54: : | I54: =ROUND(231303889.060902,-3) -> 231304000

Sheet Inputs and Revenues
B3: Rates | G3: Revenues with minimum bill | K3: Revenues without minimum bill
B6: Monthly fixed charges: | G6: Revenues per kWh range: | K6: Revenues per kWh range:
C7: Customer charge | D7: 4 | H7: 0 kWh | I7: ='Inputs and Revenues'!D12*(((5/12)*'Single Bills'!G5)+((7/12)*'Single Bills'!K5)) -> 319569.1828 | L7: 0 kWh | M7: =D12*(((5/12)*'Single Bills'!F5)+((7/12)*'Single Bills'!J5)) -> 182610.9616
C8: Minimum bill | D8: 7 | H8: 0 - 20 kWh | I8: ='Inputs and Revenues'!D13*(((5/12)*'Single Bills'!G6)+((7/12)*'Single Bills'!K6)) -> 369946.8654 | L8: 0 - 20 kWh | M8: =D13*(((5/12)*'Single Bills'!F6)+((7/12)*'Single Bills'!J6)) -> 256728.3708 | Q8: color coding key:
H9: 20 - 40 kWh | I9: ='Inputs and Revenues'!D14*(((5/12)*'Single Bills'!G7)+((7/12)*'Single Bills'!K7)) -> 312184.5839 | L9: 20 - 40 kWh | M9: =D14*(((5/12)*'Single Bills'!F7)+((7/12)*'Single Bills'!J7)) -> 293148.5714 | Q9: pick a number or rate
B10: Bill frequency: | H10: 40 - 60 kWh | I10: ='Inputs and Revenues'!D15*(((5/12)*'Single Bills'!G8)+((7/12)*'Single Bills'!K8)) -> 425403.9133 | L10: 40 - 60 kWh | M10: =D15*(((5/12)*'Single Bills'!F8)+((7/12)*'Single Bills'!J8)) -> 425403.9133 | Q10: inputs from "Data" tab
C11: kWh range | D11: # of bills | H11: 60 - 80 kWh | I11: ='Inputs and Revenues'!D16*(((5/12)*'Single Bills'!G9)+((7/12)*'Single Bills'!K9)) -> 532446.4789 | L11: 60 - 80 kWh | M11: =D16*(((5/12)*'Single Bills'!F9)+((7/12)*'Single Bills'!J9)) -> 532446.4789 | Q11: unlocked formula
C12: 0 kWh | D12: =Data!P5 -> 45652.7404 | H12: 80 - 100 kWh | I12: ='Inputs and Revenues'!D17*(((5/12)*'Single Bills'!G10)+((7/12)*'Single Bills'!K10)) -> 691210.3451 | L12: 80 - 100 kWh | M12: =D17*(((5/12)*'Single Bills'!F10)+((7/12)*'Single Bills'!J10)) -> 691210.3451
C13: 0 - 20 kWh | D13: =Data!P6 -> 52849.5522 | H13: 100 - 200 kWh | I13: ='Inputs and Revenues'!D18*(((5/12)*'Single Bills'!G11)+((7/12)*'Single Bills'!K11)) -> 6528911.312 | L13: 100 - 200 kWh | M13: =D18*(((5/12)*'Single Bills'!F11)+((7/12)*'Single Bills'!J11)) -> 6528911.312
C14: 20 - 40 kWh | D14: =Data!P7 -> 44597.7977 | H14: 200 - 300 kWh | I14: ='Inputs and Revenues'!D19*(((5/12)*'Single Bills'!G12)+((7/12)*'Single Bills'!K12)) -> 15183088.17 | L14: 200 - 300 kWh | M14: =D19*(((5/12)*'Single Bills'!F12)+((7/12)*'Single Bills'!J12)) -> 15183088.17
C15: 40 - 60 kWh | D15: =Data!P8 -> 51323.9509 | H15: 300 - 400 kWh | I15: ='Inputs and Revenues'!D20*(((5/12)*'Single Bills'!G13)+((7/12)*'Single Bills'!K13)) -> 25790262.5 | L15: 300 - 400 kWh | M15: =D20*(((5/12)*'Single Bills'!F13)+((7/12)*'Single Bills'!J13)) -> 25790262.5
C16: 60 - 80 kWh | D16: =Data!P9 -> 53223.1147 | H16: 400 - 500 kWh | I16: ='Inputs and Revenues'!D21*(((5/12)*'Single Bills'!G14)+((7/12)*'Single Bills'!K14)) -> 36456458.72 | L16: 400 - 500 kWh | M16: =D21*(((5/12)*'Single Bills'!F14)+((7/12)*'Single Bills'!J14)) -> 36456458.72
C17: 80 - 100 kWh | D17: =Data!P10 -> 58979.571 | H17: 500 - 600 kWh | I17: ='Inputs and Revenues'!D22*(((5/12)*'Single Bills'!G15)+((7/12)*'Single Bills'!K15)) -> 43974503.09 | L17: 500 - 600 kWh | M17: =D22*(((5/12)*'Single Bills'!F15)+((7/12)*'Single Bills'!J15)) -> 43974503.09
C18: 100 - 200 kWh | D18: =Data!P11 -> 387109.2076 | H18: 600 - 700 kWh | I18: ='Inputs and Revenues'!D23*(((5/12)*'Single Bills'!G16)+((7/12)*'Single Bills'!K16)) -> 47234512.81 | L18: 600 - 700 kWh | M18: =D23*(((5/12)*'Single Bills'!F16)+((7/12)*'Single Bills'!J16)) -> 47234512.81
C19: 200 - 300 kWh | D19: =Data!P12 -> 596748.6436 | H19: 700 - 800 kWh | I19: ='Inputs and Revenues'!D24*(((5/12)*'Single Bills'!G17)+((7/12)*'Single Bills'!K17)) -> 46707977.15 | L19: 700 - 800 kWh | M19: =D24*(((5/12)*'Single Bills'!F17)+((7/12)*'Single Bills'!J17)) -> 46707977.15
C20: 300 - 400 kWh | D20: =Data!P13 -> 758086.0897 | H20: 800 - 900 kWh | I20: ='Inputs and Revenues'!D25*(((5/12)*'Single Bills'!G18)+((7/12)*'Single Bills'!K18)) -> 43848995.64 | L20: 800 - 900 kWh | M20: =D25*(((5/12)*'Single Bills'!F18)+((7/12)*'Single Bills'!J18)) -> 43848995.64
C21: 400 - 500 kWh | D21: =Data!P14 -> 839836.813 | H21: 900 - 1000 kWh | I21: ='Inputs and Revenues'!D26*(((5/12)*'Single Bills'!G19)+((7/12)*'Single Bills'!K19)) -> 39861005.47 | L21: 900 - 1000 kWh | M21: =D26*(((5/12)*'Single Bills'!F19)+((7/12)*'Single Bills'!J19)) -> 39861005.47
C22: 500 - 600 kWh | D22: =Data!P15 -> 832886.2582 | H22: 1000 - 1100 kWh | I22: ='Inputs and Revenues'!D27*(((5/12)*'Single Bills'!G20)+((7/12)*'Single Bills'!K20)) -> 35940714.36 | L22: 1000 - 1100 kWh | M22: =D27*(((5/12)*'Single Bills'!F20)+((7/12)*'Single Bills'!J20)) -> 35940714.36
C23: 600 - 700 kWh | D23: =Data!P16 -> 759562.4232 | H23: 1100 - 1200 kWh | I23: ='Inputs and Revenues'!D28*(((5/12)*'Single Bills'!G21)+((7/12)*'Single Bills'!K21)) -> 32115760.99 | L23: 1100 - 1200 kWh | M23: =D28*(((5/12)*'Single Bills'!F21)+((7/12)*'Single Bills'!J21)) -> 32115760.99
C24: 700 - 800 kWh | D24: =Data!P17 -> 652571.8142 | H24: 1200 - 1300 kWh | I24: ='Inputs and Revenues'!D29*(((5/12)*'Single Bills'!G22)+((7/12)*'Single Bills'!K22)) -> 28460444.9 | L24: 1200 - 1300 kWh | M24: =D29*(((5/12)*'Single Bills'!F22)+((7/12)*'Single Bills'!J22)) -> 28460444.9
C25: 800 - 900 kWh | D25: =Data!P18 -> 541586.4696 | H25: 1300 - 1400 kWh | I25: ='Inputs and Revenues'!D30*(((5/12)*'Single Bills'!G23)+((7/12)*'Single Bills'!K23)) -> 24956538.12 | L25: 1300 - 1400 kWh | M25: =D30*(((5/12)*'Single Bills'!F23)+((7/12)*'Single Bills'!J23)) -> 24956538.12
C26: 900 - 1000 kWh | D26: =Data!P19 -> 441171.0176 | H26: 1400 - 1500 kWh | I26: ='Inputs and Revenues'!D31*(((5/12)*'Single Bills'!G24)+((7/12)*'Single Bills'!K24)) -> 21829854.21 | L26: 1400 - 1500 kWh | M26: =D31*(((5/12)*'Single Bills'!F24)+((7/12)*'Single Bills'!J24)) -> 21829854.21
C27: 1000 - 1100 kWh | D27: =Data!P20 -> 356580.7214 | H27: 1500 - 1600 kWh | I27: ='Inputs and Revenues'!D32*(((5/12)*'Single Bills'!G25)+((7/12)*'Single Bills'!K25)) -> 19150709.47 | L27: 1500 - 1600 kWh | M27: =D32*(((5/12)*'Single Bills'!F25)+((7/12)*'Single Bills'!J25)) -> 19150709.47
C28: 1100 - 1200 kWh | D28: =Data!P21 -> 288726.2531 | H28: 1600 - 1700 kWh | I28: ='Inputs and Revenues'!D33*(((5/12)*'Single Bills'!G26)+((7/12)*'Single Bills'!K26)) -> 16720883.02 | L28: 1600 - 1700 kWh | M28: =D33*(((5/12)*'Single Bills'!F26)+((7/12)*'Single Bills'!J26)) -> 16720883.02
C29: 1200 - 1300 kWh | D29: =Data!P22 -> 233910.2901 | H29: 1700 - 1800 kWh | I29: ='Inputs and Revenues'!D34*(((5/12)*'Single Bills'!G27)+((7/12)*'Single Bills'!K27)) -> 14472527.25 | L29: 1700 - 1800 kWh | M29: =D34*(((5/12)*'Single Bills'!F27)+((7/12)*'Single Bills'!J27)) -> 14472527.25
C30: 1300 - 1400 kWh | D30: =Data!P23 -> 188903.8342 | H30: 1800 - 1900 kWh | I30: ='Inputs and Revenues'!D35*(((5/12)*'Single Bills'!G28)+((7/12)*'Single Bills'!K28)) -> 12551597.68 | L30: 1800 - 1900 kWh | M30: =D35*(((5/12)*'Single Bills'!F28)+((7/12)*'Single Bills'!J28)) -> 12551597.68
C31: 1400 - 1500 kWh | D31: =Data!P24 -> 153135.7424 | H31: 1900 - 2000 kWh | I31: ='Inputs and Revenues'!D36*(((5/12)*'Single Bills'!G29)+((7/12)*'Single Bills'!K29)) -> 10929517.21 | L31: 1900 - 2000 kWh | M31: =D36*(((5/12)*'Single Bills'!F29)+((7/12)*'Single Bills'!J29)) -> 10929517.21
C32: 1500 - 1600 kWh | D32: =Data!P25 -> 125174.3933 | H32: 2000 - 3000 kWh | I32: ='Inputs and Revenues'!D37*(((5/12)*'Single Bills'!G30)+((7/12)*'Single Bills'!K30)) -> 58014961.84 | L32: 2000 - 3000 kWh | M32: =D37*(((5/12)*'Single Bills'!F30)+((7/12)*'Single Bills'!J30)) -> 58014961.84
C33: 1600 - 1700 kWh | D33: =Data!P26 -> 102310.8577 | H33: 3000 - 4000 kWh | I33: ='Inputs and Revenues'!D38*(((5/12)*'Single Bills'!G31)+((7/12)*'Single Bills'!K31)) -> 16935257.73 | L33: 3000 - 4000 kWh | M33: =D38*(((5/12)*'Single Bills'!F31)+((7/12)*'Single Bills'!J31)) -> 16935257.73
C34: 1700 - 1800 kWh | D34: =Data!P27 -> 83236.6456 | H34: 4000 - 5000 kWh | I34: ='Inputs and Revenues'!D39*(((5/12)*'Single Bills'!G32)+((7/12)*'Single Bills'!K32)) -> 6777334.07 | L34: 4000 - 5000 kWh | M34: =D39*(((5/12)*'Single Bills'!F32)+((7/12)*'Single Bills'!J32)) -> 6777334.07
C35: 1800 - 1900 kWh | D35: =Data!P28 -> 68099.739 | H35: Over 5000 kWh | I35: ='Inputs and Revenues'!D40*(((5/12)*'Single Bills'!G33)+((7/12)*'Single Bills'!K33)) -> 11925393.45 | L35: Over 5000 kWh | M35: =D40*(((5/12)*'Single Bills'!F33)+((7/12)*'Single Bills'!J33)) -> 11925393.45
C36: 1900 - 2000 kWh | D36: =Data!P29 -> 56120.2096
C37: 2000 - 3000 kWh | D37: =Data!P30 -> 230061.5899 | G37: Revenue Total: | H37: =SUM(I7:I35) -> 619017970.5 | K37: Revenue Total: | L37: =SUM(M7:M35) -> 618748757.8
C38: 3000 - 4000 kWh | D38: =Data!P31 -> 47494.823
C39: 4000 - 5000 kWh | D39: =Data!P32 -> 14702.3395
C40: Over 5000 kWh | D40: =Data!P33 -> 14431.113
B42: May - September Energy Charges: | H42: Revenue Difference:
C43: kWh range | D43: $/kWh | K43: =H37-L37 -> 269212.7283
C44: 0 - 100 kWh | D44: =I48 -> 0.084004
C45: 100 - 200 kWh | D45: =I49 -> 0.084004
C46: 200 - 300 kWh | D46: 0.084004 | H46: proposed rates | I46: current rates
C47: 300 - 400 kWh | D47: 0.084004 | G47: kWh range | H47: May-Sept | I47: May-Sept
C48: 400 - 500 kWh | D48: 0.103481 | G48: 0 - 100 kWh | H48: 0.08631 | I48: 0.084004 | L48: Revenus from Customer Charges
C49: 500 - 600 kWh | D49: 0.103481 | G49: 100 - 200 kWh | H49: 0.08631 | I49: 0.084004
C50: 600 - 700 kWh | D50: 0.103481 | G50: 200 - 300 kWh | H50: 0.08631 | I50: 0.084004 | L50: =SUM($D$12:$D$40)*$D$7 -> 32316296.06
C51: 700 - 800 kWh | D51: 0.103481 | G51: 300 - 400 kWh | H51: 0.08631 | I51: 0.084004
C52: 800 - 900 kWh | D52: 0.103481 | G52: 400 - 500 kWh | H52: 0.106321 | I52: 0.103481
C53: 900 - 1000 kWh | D53: 0.103481 | G53: 500 - 600 kWh | H53: 0.106321 | I53: 0.103481
C54: 1000 - 1100 kWh | D54: 0.128709 | G54: 600 - 700 kWh | H54: 0.106321 | I54: 0.103481
C55: 1100 - 1200 kWh | D55: 0.128709 | G55: 700 - 800 kWh | H55: 0.106321 | I55: 0.103481
C56: 1200 - 1300 kWh | D56: 0.128709 | G56: 800 - 900 kWh | H56: 0.106321 | I56: 0.103481
C57: 1300 - 1400 kWh | D57: 0.128709 | G57: 900 - 1000 kWh | H57: 0.106321 | I57: 0.103481
C58: 1400 - 1500 kWh | D58: 0.128709 | G58: 1000 - 1100 kWh | H58: 0.132242 | I58: 0.128709
C59: 1500 - 1600 kWh | D59: 0.128709 | G59: 1100 - 1200 kWh | H59: 0.132242 | I59: 0.128709
C60: 1600 - 1700 kWh | D60: 0.128709 | G60: 1200 - 1300 kWh | H60: 0.132242 | I60: 0.128709
C61: 1700 - 1800 kWh | D61: 0.128709 | G61: 1300 - 1400 kWh | H61: 0.132242 | I61: 0.128709
C62: 1800 - 1900 kWh | D62: 0.128709 | G62: 1400 - 1500 kWh | H62: 0.132242 | I62: 0.128709
C63: 1900 - 2000 kWh | D63: 0.128709 | G63: 1500 - 1600 kWh | H63: 0.132242 | I63: 0.128709
C64: 2000 - 3000 kWh | D64: 0.128709 | G64: 1600 - 1700 kWh | H64: 0.132242 | I64: 0.128709
C65: 3000 - 4000 kWh | D65: 0.128709 | G65: 1700 - 1800 kWh | H65: 0.132242 | I65: 0.128709
C66: 4000 - 5000 kWh | D66: 0.128709 | G66: 1800 - 1900 kWh | H66: 0.132242 | I66: 0.128709
C67: Over 5000 kWh | D67: 0.128709 | G67: 1900 - 2000 kWh | H67: 0.132242 | I67: 0.128709
G68: 2000 - 3000 kWh | H68: 0.132242 | I68: 0.128709
B69: October to April Energy Charges: | G69: 3000 - 4000 kWh | H69: 0.132242 | I69: 0.128709
C70: kWh range | D70: $/kWh | G70: 4000 - 5000 kWh | H70: 0.132242 | I70: 0.128709
C71: 0 kWh | D71: =I73 -> 0.087035 | G71: Over 5000 kWh | H71: 0.132242 | I71: 0.128709
C72: 0 - 20 kWh | D72: =I74 -> 0.087035 | H72: Oct-April | I72: Oct-April
C73: 20 - 40 kWh | D73: 0.087035 | G73: 0 kWh | H73: =8.9424/100 -> 0.089424 | I73: 0.087035
C74: 40 - 60 kWh | D74: 0.087035 | G74: 0 - 20 kWh | H74: =8.9424/100 -> 0.089424 | I74: 0.087035
C75: 60 - 80 kWh | D75: 0.087035 | G75: 20 - 40 kWh | H75: 0.089424 | I75: 0.087035
C76: 80 - 100 kWh | D76: 0.087035 | G76: 40 - 60 kWh | H76: 0.089424 | I76: 0.087035
C77: 100 - 200 kWh | D77: 0.087035 | G77: 60 - 80 kWh | H77: 0.089424 | I77: 0.087035
C78: 200 - 300 kWh | D78: 0.087035 | G78: 80 - 100 kWh | H78: 0.089424 | I78: 0.087035
C79: 300 - 400 kWh | D79: 0.087035 | G79: 100 - 200 kWh | H79: 0.089424 | I79: 0.087035
C80: 400 - 500 kWh | D80: 0.087035 | G80: 200 - 300 kWh | H80: 0.089424 | I80: 0.087035
C81: 500 - 600 kWh | D81: 0.087035 | G81: 300 - 400 kWh | H81: 0.089424 | I81: 0.087035
C82: 600 - 700 kWh | D82: 0.087035 | G82: 400 - 500 kWh | H82: 0.089424 | I82: 0.087035
C83: 700 - 800 kWh | D83: 0.087035 | G83: 500 - 600 kWh | H83: 0.089424 | I83: 0.087035
C84: 800 - 900 kWh | D84: 0.087035 | G84: 600 - 700 kWh | H84: 0.089424 | I84: 0.087035
C85: 900 - 1000 kWh | D85: 0.087035 | G85: 700 - 800 kWh | H85: 0.089424 | I85: 0.087035
C86: 1000 - 1100 kWh | D86: 0.087035 | G86: 800 - 900 kWh | H86: 0.089424 | I86: 0.087035
C87: 1100 - 1200 kWh | D87: 0.087035 | G87: 900 - 1000 kWh | H87: 0.089424 | I87: 0.087035
C88: 1200 - 1300 kWh | D88: 0.087035 | G88: 1000 - 1100 kWh | H88: 0.089424 | I88: 0.087035
C89: 1300 - 1400 kWh | D89: 0.087035 | G89: 1100 - 1200 kWh | H89: 0.089424 | I89: 0.087035
C90: 1400 - 1500 kWh | D90: 0.087035 | G90: 1200 - 1300 kWh | H90: 0.089424 | I90: 0.087035
C91: 1500 - 1600 kWh | D91: 0.087035 | G91: 1300 - 1400 kWh | H91: 0.089424 | I91: 0.087035
C92: 1600 - 1700 kWh | D92: 0.087035 | G92: 1400 - 1500 kWh | H92: 0.089424 | I92: 0.087035
C93: 1700 - 1800 kWh | D93: 0.087035 | G93: 1500 - 1600 kWh | H93: 0.089424 | I93: 0.087035
C94: 1800 - 1900 kWh | D94: 0.087035 | G94: 1600 - 1700 kWh | H94: 0.089424 | I94: 0.087035
C95: 1900 - 2000 kWh | D95: 0.087035 | G95: 1700 - 1800 kWh | H95: 0.089424 | I95: 0.087035
C96: 2000 - 3000 kWh | D96: 0.087035 | G96: 1800 - 1900 kWh | H96: 0.089424 | I96: 0.087035
C97: 3000 - 4000 kWh | D97: 0.087035 | G97: 1900 - 2000 kWh | H97: 0.089424 | I97: 0.087035
C98: 4000 - 5000 kWh | D98: 0.087035 | G98: 2000 - 3000 kWh | H98: 0.089424 | I98: 0.087035
C99: Over 5000 kWh | D99: 0.087035 | G99: 3000 - 4000 kWh | H99: 0.089424 | I99: 0.087035
G100: 4000 - 5000 kWh | H100: 0.089424 | I100: 0.087035
G101: Over 5000 kWh | H101: 0.089424 | I101: 0.087035

Sheet Single Bills
F1: May to September Rates | J1: October to April Rates
E3: no minimum bill | G3: minimum bill
A4: kWh range | B4: energy charge per kWh ($) | C4: assumed kWh usage within range (kWh) | E4: energy charge* | F4: energy charge + customer charge | G4: minimum bill or energy charge + customer charge | I4: energy Charge | J4: energy charge + customer charge | K4: minimum bill or energy charge + customer charge
A5: 0 kWh | B5: ='Inputs and Revenues'!$D$44 -> 0.084004 | C5: 0 | D5: 0 | E5: =D5 -> 0 | F5: =E5+'Inputs and Revenues'!$D$7 -> 4 | G5: =IF(F5<'Inputs and Revenues'!$D$8,'Inputs and Revenues'!$D$8,'Single Bills'!F5) -> 7 | I5: =C5*'Inputs and Revenues'!D71 -> 0 | J5: =I5+'Inputs and Revenues'!$D$7 -> 4 | K5: =IF(J5<'Inputs and Revenues'!$D$8,'Inputs and Revenues'!$D$8,'Single Bills'!J5) -> 7
A6: 0 - 20 kWh | B6: ='Inputs and Revenues'!$D$44 -> 0.084004 | C6: 10 | D6: 0.84004 | E6: =D6 -> 0.84004 | F6: =E6+'Inputs and Revenues'!$D$7 -> 4.84004 | G6: =IF(F6<'Inputs and Revenues'!$D$8,'Inputs and Revenues'!$D$8,'Single Bills'!F6) -> 7 | I6: =C6*'Inputs and Revenues'!D72 -> 0.87035 | J6: =I6+'Inputs and Revenues'!$D$7 -> 4.87035 | K6: =IF(J6<'Inputs and Revenues'!$D$8,'Inputs and Revenues'!$D$8,'Single Bills'!J6) -> 7
A7: 20 - 40 kWh | B7: ='Inputs and Revenues'!$D$44 -> 0.084004 | C7: 30 | D7: 2.52012 | E7: 2.52012 | F7: =E7+'Inputs and Revenues'!$D$7 -> 6.52012 | G7: =IF(F7<'Inputs and Revenues'!$D$8,'Inputs and Revenues'!$D$8,'Single Bills'!F7) -> 7 | I7: =C7*'Inputs and Revenues'!D73 -> 2.61105 | J7: =I7+'Inputs and Revenues'!$D$7 -> 6.61105 | K7: =IF(J7<'Inputs and Revenues'!$D$8,'Inputs and Revenues'!$D$8,'Single Bills'!J7) -> 7
A8: 40 - 60 kWh | B8: ='Inputs and Revenues'!$D$44 -> 0.084004 | C8: 50 | D8: 4.2002 | E8: 4.2002 | F8: =E8+'Inputs and Revenues'!$D$7 -> 8.2002 | G8: =IF(F8<'Inputs and Revenues'!$D$8,'Inputs and Revenues'!$D$8,'Single Bills'!F8) -> 8.2002 | I8: =C8*'Inputs and Revenues'!D74 -> 4.35175 | J8: =I8+'Inputs and Revenues'!$D$7 -> 8.35175 | K8: =IF(J8<'Inputs and Revenues'!$D$8,'Inputs and Revenues'!$D$8,'Single Bills'!J8) -> 8.35175
A9: 60 - 80 kWh | B9: ='Inputs and Revenues'!$D$44 -> 0.084004 | C9: 70 | D9: 5.88028 | E9: 5.88028 | F9: =E9+'Inputs and Revenues'!$D$7 -> 9.88028 | G9: =IF(F9<'Inputs and Revenues'!$D$8,'Inputs and Revenues'!$D$8,'Single Bills'!F9) -> 9.88028 | I9: =C9*'Inputs and Revenues'!D75 -> 6.09245 | J9: =I9+'Inputs and Revenues'!$D$7 -> 10.09245 | K9: =IF(J9<'Inputs and Revenues'!$D$8,'Inputs and Revenues'!$D$8,'Single Bills'!J9) -> 10.09245
A10: 80 - 100 kWh | B10: ='Inputs and Revenues'!$D$44 -> 0.084004 | C10: 90 | D10: 7.56036 | E10: 7.56036 | F10: =E10+'Inputs and Revenues'!$D$7 -> 11.56036 | G10: =IF(F10<'Inputs and Revenues'!$D$8,'Inputs and Revenues'!$D$8,'Single Bills'!F10) -> 11.56036 | I10: =C10*'Inputs and Revenues'!D76 -> 7.83315 | J10: =I10+'Inputs and Revenues'!$D$7 -> 11.83315 | K10: =IF(J10<'Inputs and Revenues'!$D$8,'Inputs and Revenues'!$D$8,'Single Bills'!J10) -> 11.83315
A11: 100 - 200 kWh | B11: ='Inputs and Revenues'!D45 -> 0.084004 | C11: 150 | D11: 12.6006 | E11: 12.6006 | F11: =E11+'Inputs and Revenues'!$D$7 -> 16.6006 | G11: =IF(F11<'Inputs and Revenues'!$D$8,'Inputs and Revenues'!$D$8,'Single Bills'!F11) -> 16.6006 | I11: =C11*'Inputs and Revenues'!D77 -> 13.05525 | J11: =I11+'Inputs and Revenues'!$D$7 -> 17.05525 | K11: =IF(J11<'Inputs and Revenues'!$D$8,'Inputs and Revenues'!$D$8,'Single Bills'!J11) -> 17.05525
A12: 200 - 300 kWh | B12: ='Inputs and Revenues'!D46 -> 0.084004 | C12: 250 | D12: 21.001 | E12: 21.001 | F12: =E12+'Inputs and Revenues'!$D$7 -> 25.001 | G12: =IF(F12<'Inputs and Revenues'!$D$8,'Inputs and Revenues'!$D$8,'Single Bills'!F12) -> 25.001 | I12: =C12*'Inputs and Revenues'!D78 -> 21.75875 | J12: =I12+'Inputs and Revenues'!$D$7 -> 25.75875 | K12: =IF(J12<'Inputs and Revenues'!$D$8,'Inputs and Revenues'!$D$8,'Single Bills'!J12) -> 25.75875
A13: 300 - 400 kWh | B13: ='Inputs and Revenues'!D47 -> 0.084004 | C13: 350 | D13: 29.4014 | E13: 29.4014 | F13: =E13+'Inputs and Revenues'!$D$7 -> 33.4014 | G13: =IF(F13<'Inputs and Revenues'!$D$8,'Inputs and Revenues'!$D$8,'Single Bills'!F13) -> 33.4014 | I13: =C13*'Inputs and Revenues'!D79 -> 30.46225 | J13: =I13+'Inputs and Revenues'!$D$7 -> 34.46225 | K13: =IF(J13<'Inputs and Revenues'!$D$8,'Inputs and Revenues'!$D$8,'Single Bills'!J13) -> 34.46225
A14: 400 - 500 kWh | B14: ='Inputs and Revenues'!D48 -> 0.103481 | C14: 450 | D14: 39.7495 | E14: 39.7495 | F14: =E14+'Inputs and Revenues'!$D$7 -> 43.7495 | G14: =IF(F14<'Inputs and Revenues'!$D$8,'Inputs and Revenues'!$D$8,'Single Bills'!F14) -> 43.7495 | I14: =C14*'Inputs and Revenues'!D80 -> 39.16575 | J14: =I14+'Inputs and Revenues'!$D$7 -> 43.16575 | K14: =IF(J14<'Inputs and Revenues'!$D$8,'Inputs and Revenues'!$D$8,'Single Bills'!J14) -> 43.16575
A15: 500 - 600 kWh | B15: ='Inputs and Revenues'!D49 -> 0.103481 | C15: 550 | D15: 50.0976 | E15: 50.0976 | F15: =E15+'Inputs and Revenues'!$D$7 -> 54.0976 | G15: =IF(F15<'Inputs and Revenues'!$D$8,'Inputs and Revenues'!$D$8,'Single Bills'!F15) -> 54.0976 | I15: =C15*'Inputs and Revenues'!D81 -> 47.86925 | J15: =I15+'Inputs and Revenues'!$D$7 -> 51.86925 | K15: =IF(J15<'Inputs and Revenues'!$D$8,'Inputs and Revenues'!$D$8,'Single Bills'!J15) -> 51.86925
A16: 600 - 700 kWh | B16: ='Inputs and Revenues'!D50 -> 0.103481 | C16: 650 | D16: 60.4457 | E16: 60.4457 | F16: =E16+'Inputs and Revenues'!$D$7 -> 64.4457 | G16: =IF(F16<'Inputs and Revenues'!$D$8,'Inputs and Revenues'!$D$8,'Single Bills'!F16) -> 64.4457 | I16: =C16*'Inputs and Revenues'!D82 -> 56.57275 | J16: =I16+'Inputs and Revenues'!$D$7 -> 60.57275 | K16: =IF(J16<'Inputs and Revenues'!$D$8,'Inputs and Revenues'!$D$8,'Single Bills'!J16) -> 60.57275
A17: 700 - 800 kWh | B17: ='Inputs and Revenues'!D51 -> 0.103481 | C17: 750 | D17: 70.7938 | E17: 70.7938 | F17: =E17+'Inputs and Revenues'!$D$7 -> 74.7938 | G17: =IF(F17<'Inputs and Revenues'!$D$8,'Inputs and Revenues'!$D$8,'Single Bills'!F17) -> 74.7938 | I17: =C17*'Inputs and Revenues'!D83 -> 65.27625 | J17: =I17+'Inputs and Revenues'!$D$7 -> 69.27625 | K17: =IF(J17<'Inputs and Revenues'!$D$8,'Inputs and Revenues'!$D$8,'Single Bills'!J17) -> 69.27625
A18: 800 - 900 kWh | B18: ='Inputs and Revenues'!D52 -> 0.103481 | C18: 850 | D18: 81.1419 | E18: 81.1419 | F18: =E18+'Inputs and Revenues'!$D$7 -> 85.1419 | G18: =IF(F18<'Inputs and Revenues'!$D$8,'Inputs and Revenues'!$D$8,'Single Bills'!F18) -> 85.1419 | I18: =C18*'Inputs and Revenues'!D84 -> 73.97975 | J18: =I18+'Inputs and Revenues'!$D$7 -> 77.97975 | K18: =IF(J18<'Inputs and Revenues'!$D$8,'Inputs and Revenues'!$D$8,'Single Bills'!J18) -> 77.97975
A19: 900 - 1000 kWh | B19: ='Inputs and Revenues'!D53 -> 0.103481 | C19: 950 | D19: 91.49 | E19: 91.49 | F19: =E19+'Inputs and Revenues'!$D$7 -> 95.49 | G19: =IF(F19<'Inputs and Revenues'!$D$8,'Inputs and Revenues'!$D$8,'Single Bills'!F19) -> 95.49 | I19: =C19*'Inputs and Revenues'!D85 -> 82.68325 | J19: =I19+'Inputs and Revenues'!$D$7 -> 86.68325 | K19: =IF(J19<'Inputs and Revenues'!$D$8,'Inputs and Revenues'!$D$8,'Single Bills'!J19) -> 86.68325
A20: 1000 - 1100 kWh | B20: ='Inputs and Revenues'!D54 -> 0.128709 | C20: 1050 | D20: 104.3609 | E20: 104.3609 | F20: =E20+'Inputs and Revenues'!$D$7 -> 108.3609 | G20: =IF(F20<'Inputs and Revenues'!$D$8,'Inputs and Revenues'!$D$8,'Single Bills'!F20) -> 108.3609 | I20: =C20*'Inputs and Revenues'!D86 -> 91.38675 | J20: =I20+'Inputs and Revenues'!$D$7 -> 95.38675 | K20: =IF(J20<'Inputs and Revenues'!$D$8,'Inputs and Revenues'!$D$8,'Single Bills'!J20) -> 95.38675
A21: 1100 - 1200 kWh | B21: ='Inputs and Revenues'!D55 -> 0.128709 | C21: 1150 | D21: 117.2318 | E21: 117.2318 | F21: =E21+'Inputs and Revenues'!$D$7 -> 121.2318 | G21: =IF(F21<'Inputs and Revenues'!$D$8,'Inputs and Revenues'!$D$8,'Single Bills'!F21) -> 121.2318 | I21: =C21*'Inputs and Revenues'!D87 -> 100.09025 | J21: =I21+'Inputs and Revenues'!$D$7 -> 104.09025 | K21: =IF(J21<'Inputs and Revenues'!$D$8,'Inputs and Revenues'!$D$8,'Single Bills'!J21) -> 104.09025
A22: 1200 - 1300 kWh | B22: ='Inputs and Revenues'!D56 -> 0.128709 | C22: 1250 | D22: 130.1027 | E22: 130.1027 | F22: =E22+'Inputs and Revenues'!$D$7 -> 134.1027 | G22: =IF(F22<'Inputs and Revenues'!$D$8,'Inputs and Revenues'!$D$8,'Single Bills'!F22) -> 134.1027 | I22: =C22*'Inputs and Revenues'!D88 -> 108.79375 | J22: =I22+'Inputs and Revenues'!$D$7 -> 112.79375 | K22: =IF(J22<'Inputs and Revenues'!$D$8,'Inputs and Revenues'!$D$8,'Single Bills'!J22) -> 112.79375
A23: 1300 - 1400 kWh | B23: ='Inputs and Revenues'!D57 -> 0.128709 | C23: 1350 | D23: 142.9736 | E23: 142.9736 | F23: =E23+'Inputs and Revenues'!$D$7 -> 146.9736 | G23: =IF(F23<'Inputs and Revenues'!$D$8,'Inputs and Revenues'!$D$8,'Single Bills'!F23) -> 146.9736 | I23: =C23*'Inputs and Revenues'!D89 -> 117.49725 | J23: =I23+'Inputs and Revenues'!$D$7 -> 121.49725 | K23: =IF(J23<'Inputs and Revenues'!$D$8,'Inputs and Revenues'!$D$8,'Single Bills'!J23) -> 121.49725
A24: 1400 - 1500 kWh | B24: ='Inputs and Revenues'!D58 -> 0.128709 | C24: 1450 | D24: 155.8445 | E24: 155.8445 | F24: =E24+'Inputs and Revenues'!$D$7 -> 159.8445 | G24: =IF(F24<'Inputs and Revenues'!$D$8,'Inputs and Revenues'!$D$8,'Single Bills'!F24) -> 159.8445 | I24: =C24*'Inputs and Revenues'!D90 -> 126.20075 | J24: =I24+'Inputs and Revenues'!$D$7 -> 130.20075 | K24: =IF(J24<'Inputs and Revenues'!$D$8,'Inputs and Revenues'!$D$8,'Single Bills'!J24) -> 130.20075
A25: 1500 - 1600 kWh | B25: ='Inputs and Revenues'!D59 -> 0.128709 | C25: 1550 | D25: 168.7154 | E25: 168.7154 | F25: =E25+'Inputs and Revenues'!$D$7 -> 172.7154 | G25: =IF(F25<'Inputs and Revenues'!$D$8,'Inputs and Revenues'!$D$8,'Single Bills'!F25) -> 172.7154 | I25: =C25*'Inputs and Revenues'!D91 -> 134.90425 | J25: =I25+'Inputs and Revenues'!$D$7 -> 138.90425 | K25: =IF(J25<'Inputs and Revenues'!$D$8,'Inputs and Revenues'!$D$8,'Single Bills'!J25) -> 138.90425
A26: 1600 - 1700 kWh | B26: ='Inputs and Revenues'!D60 -> 0.128709 | C26: 1650 | D26: 181.5863 | E26: 181.5863 | F26: =E26+'Inputs and Revenues'!$D$7 -> 185.5863 | G26: =IF(F26<'Inputs and Revenues'!$D$8,'Inputs and Revenues'!$D$8,'Single Bills'!F26) -> 185.5863 | I26: =C26*'Inputs and Revenues'!D92 -> 143.60775 | J26: =I26+'Inputs and Revenues'!$D$7 -> 147.60775 | K26: =IF(J26<'Inputs and Revenues'!$D$8,'Inputs and Revenues'!$D$8,'Single Bills'!J26) -> 147.60775
A27: 1700 - 1800 kWh | B27: ='Inputs and Revenues'!D61 -> 0.128709 | C27: 1750 | D27: 194.4572 | E27: 194.4572 | F27: =E27+'Inputs and Revenues'!$D$7 -> 198.4572 | G27: =IF(F27<'Inputs and Revenues'!$D$8,'Inputs and Revenues'!$D$8,'Single Bills'!F27) -> 198.4572 | I27: =C27*'Inputs and Revenues'!D93 -> 152.31125 | J27: =I27+'Inputs and Revenues'!$D$7 -> 156.31125 | K27: =IF(J27<'Inputs and Revenues'!$D$8,'Inputs and Revenues'!$D$8,'Single Bills'!J27) -> 156.31125
A28: 1800 - 1900 kWh | B28: ='Inputs and Revenues'!D62 -> 0.128709 | C28: 1850 | D28: 207.3281 | E28: 207.3281 | F28: =E28+'Inputs and Revenues'!$D$7 -> 211.3281 | G28: =IF(F28<'Inputs and Revenues'!$D$8,'Inputs and Revenues'!$D$8,'Single Bills'!F28) -> 211.3281 | I28: =C28*'Inputs and Revenues'!D94 -> 161.01475 | J28: =I28+'Inputs and Revenues'!$D$7 -> 165.01475 | K28: =IF(J28<'Inputs and Revenues'!$D$8,'Inputs and Revenues'!$D$8,'Single Bills'!J28) -> 165.01475
A29: 1900 - 2000 kWh | B29: ='Inputs and Revenues'!D63 -> 0.128709 | C29: 1950 | D29: 220.199 | E29: 220.199 | F29: =E29+'Inputs and Revenues'!$D$7 -> 224.199 | G29: =IF(F29<'Inputs and Revenues'!$D$8,'Inputs and Revenues'!$D$8,'Single Bills'!F29) -> 224.199 | I29: =C29*'Inputs and Revenues'!D95 -> 169.71825 | J29: =I29+'Inputs and Revenues'!$D$7 -> 173.71825 | K29: =IF(J29<'Inputs and Revenues'!$D$8,'Inputs and Revenues'!$D$8,'Single Bills'!J29) -> 173.71825
A30: 2000 - 3000 kWh | B30: ='Inputs and Revenues'!D64 -> 0.128709 | C30: 2500 | D30: 290.98895 | E30: 290.98895 | F30: =E30+'Inputs and Revenues'!$D$7 -> 294.98895 | G30: =IF(F30<'Inputs and Revenues'!$D$8,'Inputs and Revenues'!$D$8,'Single Bills'!F30) -> 294.98895 | I30: =C30*'Inputs and Revenues'!D96 -> 217.5875 | J30: =I30+'Inputs and Revenues'!$D$7 -> 221.5875 | K30: =IF(J30<'Inputs and Revenues'!$D$8,'Inputs and Revenues'!$D$8,'Single Bills'!J30) -> 221.5875
A31: 3000 - 4000 kWh | B31: ='Inputs and Revenues'!D65 -> 0.128709 | C31: 3500 | D31: 419.69795 | E31: 419.69795 | F31: =E31+'Inputs and Revenues'!$D$7 -> 423.69795 | G31: =IF(F31<'Inputs and Revenues'!$D$8,'Inputs and Revenues'!$D$8,'Single Bills'!F31) -> 423.69795 | I31: =C31*'Inputs and Revenues'!D97 -> 304.6225 | J31: =I31+'Inputs and Revenues'!$D$7 -> 308.6225 | K31: =IF(J31<'Inputs and Revenues'!$D$8,'Inputs and Revenues'!$D$8,'Single Bills'!J31) -> 308.6225
A32: 4000 - 5000 kWh | B32: ='Inputs and Revenues'!D66 -> 0.128709 | C32: 4500 | D32: 548.40695 | E32: 548.40695 | F32: =E32+'Inputs and Revenues'!$D$7 -> 552.40695 | G32: =IF(F32<'Inputs and Revenues'!$D$8,'Inputs and Revenues'!$D$8,'Single Bills'!F32) -> 552.40695 | I32: =C32*'Inputs and Revenues'!D98 -> 391.6575 | J32: =I32+'Inputs and Revenues'!$D$7 -> 395.6575 | K32: =IF(J32<'Inputs and Revenues'!$D$8,'Inputs and Revenues'!$D$8,'Single Bills'!J32) -> 395.6575
A33: Over 5000 kWh | B33: ='Inputs and Revenues'!D67 -> 0.128709 | C33: 8000 | D33: 998.88845 | E33: 998.88845 | F33: =E33+'Inputs and Revenues'!$D$7 -> 1002.88845 | G33: =IF(F33<'Inputs and Revenues'!$D$8,'Inputs and Revenues'!$D$8,'Single Bills'!F33) -> 1002.88845 | I33: =C33*'Inputs and Revenues'!D99 -> 696.28 | J33: =I33+'Inputs and Revenues'!$D$7 -> 700.28 | K33: =IF(J33<'Inputs and Revenues'!$D$8,'Inputs and Revenues'!$D$8,'Single Bills'!J33) -> 700.28
E34: *energy charge is derived from "eCharge" macro
A35: color coding key:
A36: pick a number within kWh range
A37: inputs from "Inputs and Revenues" tab
A38: unlocked formula

Sheet Reduced Usage Scenario
B2: percentage usage drop: | D2: 20 | E2: % | G2: May to September rates | K2: October to April rates | O2: revenues with decreased usage
G4: no minimum bill | I4: minimum bill | L4: no minimum bill | M4: minimum bill | O4: no minimum bill | P4: minimum bill
B5: kWh range | C5: assumed use within range (kWh) | D5: energy charge per kWh ($) | E5: decreased tailblock usage** | G5: energy charge* | H5: energy charge + customer charge | I5: minimum bill or energy charge + customer charge | K5: energy Charge | L5: energy charge + customer charge | M5: minimum bill or energy charge + customer charge | O5: revenues with no minimum bill | P5: revenues with minimum bill
B6: 0 kWh | C6: 0 | D6: ='Single Bills'!B5 -> 0.084004 | E6: =C6 -> 0 | F6: 0 | G6: =F6 -> 0 | H6: =G6+'Inputs and Revenues'!$D$7 -> 4 | I6: =IF(H6<'Inputs and Revenues'!$D$8,'Inputs and Revenues'!$D$8,H6) -> 7 | K6: =C6*'Inputs and Revenues'!D71 -> 0 | L6: =K6+'Inputs and Revenues'!$D$7 -> 4 | M6: =IF(L6<'Inputs and Revenues'!$D$8,'Inputs and Revenues'!$D$8,L6) -> 7 | O6: ='Inputs and Revenues'!D12*(((5/12)*H6)+((7/12)*L6)) -> 182610.9616 | P6: ='Inputs and Revenues'!D12*(((5/12)*I6)+((7/12)*'Reduced Usage Scenario'!M6)) -> 319569.1828
B7: 0 - 20 kWh | C7: 10 | D7: ='Single Bills'!B6 -> 0.084004 | E7: =C7 -> 10 | F7: 0.84004 | G7: =F7 -> 0.84004 | H7: =G7+'Inputs and Revenues'!$D$7 -> 4.84004 | I7: =IF(H7<'Inputs and Revenues'!$D$8,'Inputs and Revenues'!$D$8,H7) -> 7 | K7: =C7*'Inputs and Revenues'!D72 -> 0.87035 | L7: =K7+'Inputs and Revenues'!$D$7 -> 4.87035 | M7: =IF(L7<'Inputs and Revenues'!$D$8,'Inputs and Revenues'!$D$8,L7) -> 7 | O7: ='Inputs and Revenues'!D13*(((5/12)*H7)+((7/12)*L7)) -> 256728.3708 | P7: ='Inputs and Revenues'!D13*(((5/12)*I7)+((7/12)*'Reduced Usage Scenario'!M7)) -> 369946.8654
B8: 20 - 40 kWh | C8: 30 | D8: ='Single Bills'!B7 -> 0.084004 | E8: 30 | F8: 2.52012 | G8: 2.52012 | H8: =G8+'Inputs and Revenues'!$D$7 -> 6.52012 | I8: =IF(H8<'Inputs and Revenues'!$D$8,'Inputs and Revenues'!$D$8,H8) -> 7 | K8: =C8*'Inputs and Revenues'!D73 -> 2.61105 | L8: =K8+'Inputs and Revenues'!$D$7 -> 6.61105 | M8: =IF(L8<'Inputs and Revenues'!$D$8,'Inputs and Revenues'!$D$8,L8) -> 7 | O8: ='Inputs and Revenues'!D14*(((5/12)*H8)+((7/12)*L8)) -> 293148.5714 | P8: ='Inputs and Revenues'!D14*(((5/12)*I8)+((7/12)*'Reduced Usage Scenario'!M8)) -> 312184.5839
B9: 40 - 60 kWh | C9: 50 | D9: ='Single Bills'!B8 -> 0.084004 | E9: 50 | F9: 4.2002 | G9: 4.2002 | H9: =G9+'Inputs and Revenues'!$D$7 -> 8.2002 | I9: =IF(H9<'Inputs and Revenues'!$D$8,'Inputs and Revenues'!$D$8,H9) -> 8.2002 | K9: =C9*'Inputs and Revenues'!D74 -> 4.35175 | L9: =K9+'Inputs and Revenues'!$D$7 -> 8.35175 | M9: =IF(L9<'Inputs and Revenues'!$D$8,'Inputs and Revenues'!$D$8,L9) -> 8.35175 | O9: ='Inputs and Revenues'!D15*(((5/12)*H9)+((7/12)*L9)) -> 425403.9133 | P9: ='Inputs and Revenues'!D15*(((5/12)*I9)+((7/12)*'Reduced Usage Scenario'!M9)) -> 425403.9133
B10: 60 - 80 kWh | C10: 70 | D10: ='Single Bills'!B9 -> 0.084004 | E10: 70 | F10: 5.88028 | G10: 5.88028 | H10: =G10+'Inputs and Revenues'!$D$7 -> 9.88028 | I10: =IF(H10<'Inputs and Revenues'!$D$8,'Inputs and Revenues'!$D$8,H10) -> 9.88028 | K10: =C10*'Inputs and Revenues'!D75 -> 6.09245 | L10: =K10+'Inputs and Revenues'!$D$7 -> 10.09245 | M10: =IF(L10<'Inputs and Revenues'!$D$8,'Inputs and Revenues'!$D$8,L10) -> 10.09245 | O10: ='Inputs and Revenues'!D16*(((5/12)*H10)+((7/12)*L10)) -> 532446.4789 | P10: ='Inputs and Revenues'!D16*(((5/12)*I10)+((7/12)*'Reduced Usage Scenario'!M10)) -> 532446.4789
B11: 80 - 100 kWh | C11: 90 | D11: ='Single Bills'!B10 -> 0.084004 | E11: 90 | F11: 7.56036 | G11: 7.56036 | H11: =G11+'Inputs and Revenues'!$D$7 -> 11.56036 | I11: =IF(H11<'Inputs and Revenues'!$D$8,'Inputs and Revenues'!$D$8,H11) -> 11.56036 | K11: =C11*'Inputs and Revenues'!D76 -> 7.83315 | L11: =K11+'Inputs and Revenues'!$D$7 -> 11.83315 | M11: =IF(L11<'Inputs and Revenues'!$D$8,'Inputs and Revenues'!$D$8,L11) -> 11.83315 | O11: ='Inputs and Revenues'!D17*(((5/12)*H11)+((7/12)*L11)) -> 691210.3451 | P11: ='Inputs and Revenues'!D17*(((5/12)*I11)+((7/12)*'Reduced Usage Scenario'!M11)) -> 691210.3451
B12: 100 - 200 kWh | C12: 150 | D12: ='Single Bills'!B11 -> 0.084004 | E12: 150 | F12: 12.6006 | G12: 12.6006 | H12: =G12+'Inputs and Revenues'!$D$7 -> 16.6006 | I12: =IF(H12<'Inputs and Revenues'!$D$8,'Inputs and Revenues'!$D$8,H12) -> 16.6006 | K12: =C12*'Inputs and Revenues'!D77 -> 13.05525 | L12: =K12+'Inputs and Revenues'!$D$7 -> 17.05525 | M12: =IF(L12<'Inputs and Revenues'!$D$8,'Inputs and Revenues'!$D$8,L12) -> 17.05525 | O12: ='Inputs and Revenues'!D18*(((5/12)*H12)+((7/12)*L12)) -> 6528911.312 | P12: ='Inputs and Revenues'!D18*(((5/12)*I12)+((7/12)*'Reduced Usage Scenario'!M12)) -> 6528911.312
B13: 200 - 300 kWh | C13: 250 | D13: ='Single Bills'!B12 -> 0.084004 | E13: 250 | F13: 21.001 | G13: 21.001 | H13: =G13+'Inputs and Revenues'!$D$7 -> 25.001 | I13: =IF(H13<'Inputs and Revenues'!$D$8,'Inputs and Revenues'!$D$8,H13) -> 25.001 | K13: =C13*'Inputs and Revenues'!D78 -> 21.75875 | L13: =K13+'Inputs and Revenues'!$D$7 -> 25.75875 | M13: =IF(L13<'Inputs and Revenues'!$D$8,'Inputs and Revenues'!$D$8,L13) -> 25.75875 | O13: ='Inputs and Revenues'!D19*(((5/12)*H13)+((7/12)*L13)) -> 15183088.17 | P13: ='Inputs and Revenues'!D19*(((5/12)*I13)+((7/12)*'Reduced Usage Scenario'!M13)) -> 15183088.17
B14: 300 - 400 kWh | C14: 350 | D14: ='Single Bills'!B13 -> 0.084004 | E14: 350 | F14: 29.4014 | G14: 29.4014 | H14: =G14+'Inputs and Revenues'!$D$7 -> 33.4014 | I14: =IF(H14<'Inputs and Revenues'!$D$8,'Inputs and Revenues'!$D$8,H14) -> 33.4014 | K14: =C14*'Inputs and Revenues'!D79 -> 30.46225 | L14: =K14+'Inputs and Revenues'!$D$7 -> 34.46225 | M14: =IF(L14<'Inputs and Revenues'!$D$8,'Inputs and Revenues'!$D$8,L14) -> 34.46225 | O14: ='Inputs and Revenues'!D20*(((5/12)*H14)+((7/12)*L14)) -> 25790262.5 | P14: ='Inputs and Revenues'!D20*(((5/12)*I14)+((7/12)*'Reduced Usage Scenario'!M14)) -> 25790262.5
B15: 400 - 500 kWh | C15: 450 | D15: =D14 -> 0.084004 | E15: =C15*(1-($D$2/100)) -> 360 | F15: 35.533692 | G15: 35.533692 | H15: =G15+'Inputs and Revenues'!$D$7 -> 39.533692 | I15: =IF(H15<'Inputs and Revenues'!$D$8,'Inputs and Revenues'!$D$8,H15) -> 39.533692 | K15: =C15*'Inputs and Revenues'!D80 -> 39.16575 | L15: =K15+'Inputs and Revenues'!$D$7 -> 43.16575 | M15: =IF(L15<'Inputs and Revenues'!$D$8,'Inputs and Revenues'!$D$8,L15) -> 43.16575 | O15: ='Inputs and Revenues'!D21*(((5/12)*H15)+((7/12)*L15)) -> 34981212.57 | P15: ='Inputs and Revenues'!D21*(((5/12)*I15)+((7/12)*'Reduced Usage Scenario'!M15)) -> 34981212.57
B16: 500 - 600 kWh | C16: 550 | D16: ='Single Bills'!B15 -> 0.103481 | E16: 440 | F16: 45.260906 | G16: 45.260906 | H16: =G16+'Inputs and Revenues'!$D$7 -> 49.260906 | I16: =IF(H16<'Inputs and Revenues'!$D$8,'Inputs and Revenues'!$D$8,H16) -> 49.260906 | K16: =C16*'Inputs and Revenues'!D81 -> 47.86925 | L16: =K16+'Inputs and Revenues'!$D$7 -> 51.86925 | M16: =IF(L16<'Inputs and Revenues'!$D$8,'Inputs and Revenues'!$D$8,L16) -> 51.86925 | O16: ='Inputs and Revenues'!D22*(((5/12)*H16)+((7/12)*L16)) -> 42295996.43 | P16: ='Inputs and Revenues'!D22*(((5/12)*I16)+((7/12)*'Reduced Usage Scenario'!M16)) -> 42295996.43
B17: 600 - 700 kWh | C17: 650 | D17: ='Single Bills'!B16 -> 0.103481 | E17: 520 | F17: 54.98812 | G17: 54.98812 | H17: =G17+'Inputs and Revenues'!$D$7 -> 58.98812 | I17: =IF(H17<'Inputs and Revenues'!$D$8,'Inputs and Revenues'!$D$8,H17) -> 58.98812 | K17: =C17*'Inputs and Revenues'!D82 -> 56.57275 | L17: =K17+'Inputs and Revenues'!$D$7 -> 60.57275 | M17: =IF(L17<'Inputs and Revenues'!$D$8,'Inputs and Revenues'!$D$8,L17) -> 60.57275 | O17: ='Inputs and Revenues'!D23*(((5/12)*H17)+((7/12)*L17)) -> 45507274.19 | P17: ='Inputs and Revenues'!D23*(((5/12)*I17)+((7/12)*'Reduced Usage Scenario'!M17)) -> 45507274.19
B18: 700 - 800 kWh | C18: 750 | D18: ='Single Bills'!B17 -> 0.103481 | E18: 600 | F18: 64.715334 | G18: 64.715334 | H18: =G18+'Inputs and Revenues'!$D$7 -> 68.715334 | I18: =IF(H18<'Inputs and Revenues'!$D$8,'Inputs and Revenues'!$D$8,H18) -> 68.715334 | K18: =C18*'Inputs and Revenues'!D83 -> 65.27625 | L18: =K18+'Inputs and Revenues'!$D$7 -> 69.27625 | M18: =IF(L18<'Inputs and Revenues'!$D$8,'Inputs and Revenues'!$D$8,L18) -> 69.27625 | O18: ='Inputs and Revenues'!D24*(((5/12)*H18)+((7/12)*L18)) -> 45055212.32 | P18: ='Inputs and Revenues'!D24*(((5/12)*I18)+((7/12)*'Reduced Usage Scenario'!M18)) -> 45055212.32
B19: 800 - 900 kWh | C19: 850 | D19: ='Single Bills'!B18 -> 0.103481 | E19: 680 | F19: 74.442548 | G19: 74.442548 | H19: =G19+'Inputs and Revenues'!$D$7 -> 78.442548 | I19: =IF(H19<'Inputs and Revenues'!$D$8,'Inputs and Revenues'!$D$8,H19) -> 78.442548 | K19: =C19*'Inputs and Revenues'!D84 -> 73.97975 | L19: =K19+'Inputs and Revenues'!$D$7 -> 77.97975 | M19: =IF(L19<'Inputs and Revenues'!$D$8,'Inputs and Revenues'!$D$8,L19) -> 77.97975 | O19: ='Inputs and Revenues'!D25*(((5/12)*H19)+((7/12)*L19)) -> 42337212.98 | P19: ='Inputs and Revenues'!D25*(((5/12)*I19)+((7/12)*'Reduced Usage Scenario'!M19)) -> 42337212.98
B20: 900 - 1000 kWh | C20: 950 | D20: ='Single Bills'!B19 -> 0.103481 | E20: 760 | F20: 84.169762 | G20: 84.169762 | H20: =G20+'Inputs and Revenues'!$D$7 -> 88.169762 | I20: =IF(H20<'Inputs and Revenues'!$D$8,'Inputs and Revenues'!$D$8,H20) -> 88.169762 | K20: =C20*'Inputs and Revenues'!D85 -> 82.68325 | L20: =K20+'Inputs and Revenues'!$D$7 -> 86.68325 | M20: =IF(L20<'Inputs and Revenues'!$D$8,'Inputs and Revenues'!$D$8,L20) -> 86.68325 | O20: ='Inputs and Revenues'!D26*(((5/12)*H20)+((7/12)*L20)) -> 38515390.12 | P20: ='Inputs and Revenues'!D26*(((5/12)*I20)+((7/12)*'Reduced Usage Scenario'!M20)) -> 38515390.12
B21: 1000 - 1100 kWh | C21: 1050 | D21: =D20 -> 0.103481 | E21: 840 | F21: 93.896976 | G21: 93.896976 | H21: =G21+'Inputs and Revenues'!$D$7 -> 97.896976 | I21: =IF(H21<'Inputs and Revenues'!$D$8,'Inputs and Revenues'!$D$8,H21) -> 97.896976 | K21: =C21*'Inputs and Revenues'!D86 -> 91.38675 | L21: =K21+'Inputs and Revenues'!$D$7 -> 95.38675 | M21: =IF(L21<'Inputs and Revenues'!$D$8,'Inputs and Revenues'!$D$8,L21) -> 95.38675 | O21: ='Inputs and Revenues'!D27*(((5/12)*H21)+((7/12)*L21)) -> 34386033.71 | P21: ='Inputs and Revenues'!D27*(((5/12)*I21)+((7/12)*'Reduced Usage Scenario'!M21)) -> 34386033.71
B22: 1100 - 1200 kWh | C22: 1150 | D22: =D21 -> 0.103481 | E22: 920 | F22: 103.62419 | G22: 103.62419 | H22: =G22+'Inputs and Revenues'!$D$7 -> 107.62419 | I22: =IF(H22<'Inputs and Revenues'!$D$8,'Inputs and Revenues'!$D$8,H22) -> 107.62419 | K22: =C22*'Inputs and Revenues'!D87 -> 100.09025 | L22: =K22+'Inputs and Revenues'!$D$7 -> 104.09025 | M22: =IF(L22<'Inputs and Revenues'!$D$8,'Inputs and Revenues'!$D$8,L22) -> 104.09025 | O22: ='Inputs and Revenues'!D28*(((5/12)*H22)+((7/12)*L22)) -> 30478730.06 | P22: ='Inputs and Revenues'!D28*(((5/12)*I22)+((7/12)*'Reduced Usage Scenario'!M22)) -> 30478730.06
B23: 1200 - 1300 kWh | C23: 1250 | D23: ='Single Bills'!B22 -> 0.128709 | E23: 1000 | F23: 115.722836 | G23: 115.722836 | H23: =G23+'Inputs and Revenues'!$D$7 -> 119.722836 | I23: =IF(H23<'Inputs and Revenues'!$D$8,'Inputs and Revenues'!$D$8,H23) -> 119.722836 | K23: =C23*'Inputs and Revenues'!D88 -> 108.79375 | L23: =K23+'Inputs and Revenues'!$D$7 -> 112.79375 | M23: =IF(L23<'Inputs and Revenues'!$D$8,'Inputs and Revenues'!$D$8,L23) -> 112.79375 | O23: ='Inputs and Revenues'!D29*(((5/12)*H23)+((7/12)*L23)) -> 27058945.67 | P23: ='Inputs and Revenues'!D29*(((5/12)*I23)+((7/12)*'Reduced Usage Scenario'!M23)) -> 27058945.67
B24: 1300 - 1400 kWh | C24: 1350 | D24: ='Single Bills'!B23 -> 0.128709 | E24: 1080 | F24: 127.821482 | G24: 127.821482 | H24: =G24+'Inputs and Revenues'!$D$7 -> 131.821482 | I24: =IF(H24<'Inputs and Revenues'!$D$8,'Inputs and Revenues'!$D$8,H24) -> 131.821482 | K24: =C24*'Inputs and Revenues'!D89 -> 117.49725 | L24: =K24+'Inputs and Revenues'!$D$7 -> 121.49725 | M24: =IF(L24<'Inputs and Revenues'!$D$8,'Inputs and Revenues'!$D$8,L24) -> 121.49725 | O24: ='Inputs and Revenues'!D30*(((5/12)*H24)+((7/12)*L24)) -> 23763915.96 | P24: ='Inputs and Revenues'!D30*(((5/12)*I24)+((7/12)*'Reduced Usage Scenario'!M24)) -> 23763915.96
B25: 1400 - 1500 kWh | C25: 1450 | D25: ='Single Bills'!B24 -> 0.128709 | E25: 1160 | F25: 139.920128 | G25: 139.920128 | H25: =G25+'Inputs and Revenues'!$D$7 -> 143.920128 | I25: =IF(H25<'Inputs and Revenues'!$D$8,'Inputs and Revenues'!$D$8,H25) -> 143.920128 | K25: =C25*'Inputs and Revenues'!D90 -> 126.20075 | L25: =K25+'Inputs and Revenues'!$D$7 -> 130.20075 | M25: =IF(L25<'Inputs and Revenues'!$D$8,'Inputs and Revenues'!$D$8,L25) -> 130.20075 | O25: ='Inputs and Revenues'!D31*(((5/12)*H25)+((7/12)*L25)) -> 20813774.82 | P25: ='Inputs and Revenues'!D31*(((5/12)*I25)+((7/12)*'Reduced Usage Scenario'!M25)) -> 20813774.82
B26: 1500 - 1600 kWh | C26: 1550 | D26: ='Single Bills'!B25 -> 0.128709 | E26: 1240 | F26: 152.018774 | G26: 152.018774 | H26: =G26+'Inputs and Revenues'!$D$7 -> 156.018774 | I26: =IF(H26<'Inputs and Revenues'!$D$8,'Inputs and Revenues'!$D$8,H26) -> 156.018774 | K26: =C26*'Inputs and Revenues'!D91 -> 134.90425 | L26: =K26+'Inputs and Revenues'!$D$7 -> 138.90425 | M26: =IF(L26<'Inputs and Revenues'!$D$8,'Inputs and Revenues'!$D$8,L26) -> 138.90425 | O26: ='Inputs and Revenues'!D32*(((5/12)*H26)+((7/12)*L26)) -> 18279880.29 | P26: ='Inputs and Revenues'!D32*(((5/12)*I26)+((7/12)*'Reduced Usage Scenario'!M26)) -> 18279880.29
B27: 1600 - 1700 kWh | C27: 1650 | D27: ='Single Bills'!B26 -> 0.128709 | E27: 1320 | F27: 164.11742 | G27: 164.11742 | H27: =G27+'Inputs and Revenues'!$D$7 -> 168.11742 | I27: =IF(H27<'Inputs and Revenues'!$D$8,'Inputs and Revenues'!$D$8,H27) -> 168.11742 | K27: =C27*'Inputs and Revenues'!D92 -> 143.60775 | L27: =K27+'Inputs and Revenues'!$D$7 -> 147.60775 | M27: =IF(L27<'Inputs and Revenues'!$D$8,'Inputs and Revenues'!$D$8,L27) -> 147.60775 | O27: ='Inputs and Revenues'!D33*(((5/12)*H27)+((7/12)*L27)) -> 15976192.98 | P27: ='Inputs and Revenues'!D33*(((5/12)*I27)+((7/12)*'Reduced Usage Scenario'!M27)) -> 15976192.98
B28: 1700 - 1800 kWh | C28: 1750 | D28: ='Single Bills'!B27 -> 0.128709 | E28: 1400 | F28: 176.216066 | G28: 176.216066 | H28: =G28+'Inputs and Revenues'!$D$7 -> 180.216066 | I28: =IF(H28<'Inputs and Revenues'!$D$8,'Inputs and Revenues'!$D$8,H28) -> 180.216066 | K28: =C28*'Inputs and Revenues'!D93 -> 152.31125 | L28: =K28+'Inputs and Revenues'!$D$7 -> 156.31125 | M28: =IF(L28<'Inputs and Revenues'!$D$8,'Inputs and Revenues'!$D$8,L28) -> 156.31125 | O28: ='Inputs and Revenues'!D34*(((5/12)*H28)+((7/12)*L28)) -> 13839889.41 | P28: ='Inputs and Revenues'!D34*(((5/12)*I28)+((7/12)*'Reduced Usage Scenario'!M28)) -> 13839889.41
B29: 1800 - 1900 kWh | C29: 1850 | D29: ='Single Bills'!B28 -> 0.128709 | E29: 1480 | F29: 188.314712 | G29: 188.314712 | H29: =G29+'Inputs and Revenues'!$D$7 -> 192.314712 | I29: =IF(H29<'Inputs and Revenues'!$D$8,'Inputs and Revenues'!$D$8,H29) -> 192.314712 | K29: =C29*'Inputs and Revenues'!D94 -> 161.01475 | L29: =K29+'Inputs and Revenues'!$D$7 -> 165.01475 | M29: =IF(L29<'Inputs and Revenues'!$D$8,'Inputs and Revenues'!$D$8,L29) -> 165.01475 | O29: ='Inputs and Revenues'!D35*(((5/12)*H29)+((7/12)*L29)) -> 12012094.86 | P29: ='Inputs and Revenues'!D35*(((5/12)*I29)+((7/12)*'Reduced Usage Scenario'!M29)) -> 12012094.86
B30: 1900 - 2000 kWh | C30: 1950 | D30: ='Single Bills'!B29 -> 0.128709 | E30: 1560 | F30: 200.413358 | G30: 200.413358 | H30: =G30+'Inputs and Revenues'!$D$7 -> 204.413358 | I30: =IF(H30<'Inputs and Revenues'!$D$8,'Inputs and Revenues'!$D$8,H30) -> 204.413358 | K30: =C30*'Inputs and Revenues'!D95 -> 169.71825 | L30: =K30+'Inputs and Revenues'!$D$7 -> 173.71825 | M30: =IF(L30<'Inputs and Revenues'!$D$8,'Inputs and Revenues'!$D$8,L30) -> 173.71825 | O30: ='Inputs and Revenues'!D36*(((5/12)*H30)+((7/12)*L30)) -> 10466861.22 | P30: ='Inputs and Revenues'!D36*(((5/12)*I30)+((7/12)*'Reduced Usage Scenario'!M30)) -> 10466861.22
B31: 2000 - 3000 kWh | C31: 2500 | D31: ='Single Bills'!B30 -> 0.128709 | E31: 2000 | F31: 266.955911 | G31: 266.955911 | H31: =G31+'Inputs and Revenues'!$D$7 -> 270.955911 | I31: =IF(H31<'Inputs and Revenues'!$D$8,'Inputs and Revenues'!$D$8,H31) -> 270.955911 | K31: =C31*'Inputs and Revenues'!D96 -> 217.5875 | L31: =K31+'Inputs and Revenues'!$D$7 -> 221.5875 | M31: =IF(L31<'Inputs and Revenues'!$D$8,'Inputs and Revenues'!$D$8,L31) -> 221.5875 | O31: ='Inputs and Revenues'!D37*(((5/12)*H31)+((7/12)*L31)) -> 55711178.85 | P31: ='Inputs and Revenues'!D37*(((5/12)*I31)+((7/12)*'Reduced Usage Scenario'!M31)) -> 55711178.85
B32: 3000 - 4000 kWh | C32: 3500 | D32: ='Single Bills'!B31 -> 0.128709 | E32: 2800 | F32: 387.942371 | G32: 387.942371 | H32: =G32+'Inputs and Revenues'!$D$7 -> 391.942371 | I32: =IF(H32<'Inputs and Revenues'!$D$8,'Inputs and Revenues'!$D$8,H32) -> 391.942371 | K32: =C32*'Inputs and Revenues'!D97 -> 304.6225 | L32: =K32+'Inputs and Revenues'!$D$7 -> 308.6225 | M32: =IF(L32<'Inputs and Revenues'!$D$8,'Inputs and Revenues'!$D$8,L32) -> 308.6225 | O32: ='Inputs and Revenues'!D38*(((5/12)*H32)+((7/12)*L32)) -> 16306830.4 | P32: ='Inputs and Revenues'!D38*(((5/12)*I32)+((7/12)*'Reduced Usage Scenario'!M32)) -> 16306830.4
B33: 4000 - 5000 kWh | C33: 4500 | D33: ='Single Bills'!B32 -> 0.128709 | E33: 3600 | F33: 508.928831 | G33: 508.928831 | H33: =G33+'Inputs and Revenues'!$D$7 -> 512.928831 | I33: =IF(H33<'Inputs and Revenues'!$D$8,'Inputs and Revenues'!$D$8,H33) -> 512.928831 | K33: =C33*'Inputs and Revenues'!D98 -> 391.6575 | L33: =K33+'Inputs and Revenues'!$D$7 -> 395.6575 | M33: =IF(L33<'Inputs and Revenues'!$D$8,'Inputs and Revenues'!$D$8,L33) -> 395.6575 | O33: ='Inputs and Revenues'!D39*(((5/12)*H33)+((7/12)*L33)) -> 6535492.108 | P33: ='Inputs and Revenues'!D39*(((5/12)*I33)+((7/12)*'Reduced Usage Scenario'!M33)) -> 6535492.108
B34: Over 5000 kWh | C34: 8000 | D34: ='Single Bills'!B33 -> 0.128709 | E34: 6400 | F34: 932.381441 | G34: 932.381441 | H34: =G34+'Inputs and Revenues'!$D$7 -> 936.381441 | I34: =IF(H34<'Inputs and Revenues'!$D$8,'Inputs and Revenues'!$D$8,H34) -> 936.381441 | K34: =C34*'Inputs and Revenues'!D99 -> 696.28 | L34: =K34+'Inputs and Revenues'!$D$7 -> 700.28 | M34: =IF(L34<'Inputs and Revenues'!$D$8,'Inputs and Revenues'!$D$8,L34) -> 700.28 | O34: ='Inputs and Revenues'!D40*(((5/12)*H34)+((7/12)*L34)) -> 11525489.22 | P34: ='Inputs and Revenues'!D40*(((5/12)*I34)+((7/12)*'Reduced Usage Scenario'!M34)) -> 11525489.22
E36: **purple cells have % usage drop factored in | G36: *energy charge is derived from "eCharge2" macro | O36: =SUM(O6:O34) -> 595731418.8 | P36: =SUM(P6:P34) -> 596000631.5
O38: revenue difference between "normal" usage and % decreased usage in blocks 2 and 3:
O40: ='Inputs and Revenues'!L37-O36 -> 23017339.02 | P40: ='Inputs and Revenues'!H37-P36 -> 23017339.02

Sheet Data
A2: 2010 - 2011 bill frequency data (OCS 3.37)
B4: kWh range | C4: 201007 | D4: 201008 | E4: 201009 | F4: 201010 | G4: 201011 | H4: 201012 | I4: 201101 | J4: 201102 | K4: 201103 | L4: 201104 | M4: 201105 | N4: 201106 | P4: Total Bills | R4: Ave # of bills
B5: 0 | C5: 3189.7984 | D5: 3151.3622 | E5: 3079.6812 | F5: 2987.7826 | G5: 3549.5813 | H5: 4305.4961 | I5: 4497.8546 | J5: 4549.4085 | K5: 4544.3155 | L5: 4429.0238 | M5: 4083.5346 | N5: 3284.9016 | P5: =SUM(C5:N5) -> 45652.7404 | R5: =SUM(C5:N5)/12 -> 3804.395033
B6: 20 | C6: 4800.3056 | D6: 4562.8442 | E6: 4614.8872 | F6: 4974.7453 | G6: 4892.1334 | H6: 3883.7175 | I6: 3721.9581 | J6: 3722.7865 | K6: 3951.829 | L6: 4291.2418 | M6: 4637.0118 | N6: 4796.0918 | P6: 52849.5522 | R6: =SUM(C6:N6)/12 -> 4404.12935
B7: 40 | C7: 3547.3581 | D7: 2947.7056 | E7: 3286.0282 | F7: 3943.716 | G7: 4622.0915 | H7: 3424.2224 | I7: 2972.8294 | J7: 3063.9064 | K7: 3551.0522 | L7: 4136.0108 | M7: 4538.92 | N7: 4563.9571 | P7: 44597.7977 | R7: 3716.483142
B8: 60 | C8: 4172.1246 | D8: 3344.428 | E8: 3830.5506 | F8: 4820.0254 | G8: 5108.9115 | H8: 3647.5868 | I8: 3034.872 | J8: 3401.868 | K8: 4131.529 | L8: 4818.8993 | M8: 5489.539 | N8: 5523.6167 | P8: 51323.9509 | R8: 4276.995908
B9: 80 | C9: 4337.4089 | D9: 3717.2292 | E9: 4207.1897 | F9: 5258.2757 | G9: 5008.2782 | H9: 3740.833 | I9: 3250.9358 | J9: 3721.3334 | K9: 4284.8229 | L9: 4887.0817 | M9: 5251.0967 | N9: 5558.6295 | P9: 53223.1147 | R9: 4435.259558
B10: 100 | C10: 4852.8205 | D10: 3885.6284 | E10: 4651.2048 | F10: 5876.8581 | G10: 5316.0843 | H10: 4055.0072 | I10: 3717.2514 | J10: 4288.6509 | K10: 4814.1315 | L10: 5213.423 | M10: 5974.3713 | N10: 6334.1396 | P10: 58979.571 | R10: 4914.96425
B11: 200 | C11: 28143.1387 | D11: 21891.9656 | E11: 29012.0612 | F11: 39248.931 | G11: 36517.1582 | H11: 24842.7087 | I11: 23741.5781 | J11: 28701.1115 | K11: 33290.7936 | L11: 37122.0106 | M11: 42198.9699 | N11: 42398.7805 | P11: 387109.2076 | R11: 32259.10063
B12: 300 | C12: 38739.8577 | D12: 27702.4236 | E12: 41267.1228 | F12: 58793.6179 | G12: 59246.8363 | H12: 38095.4281 | I12: 35812.6083 | J12: 46782.8894 | K12: 54851.3929 | L12: 61310.6959 | M12: 68264.5357 | N12: 65881.235 | P12: 596748.6436 | R12: 49729.05363
B13: 400 | C13: 47694.5407 | D13: 34094.3544 | E13: 51881.4165 | F13: 71208.0849 | G13: 75347.6265 | H13: 50781.4578 | I13: 48115.9865 | J13: 63348.8345 | K13: 72046.7559 | L13: 78746.5886 | M13: 84806.1782 | N13: 80014.2652 | P13: 758086.0897 | R13: 63173.84081
B14: 500 | C14: 52868.5945 | D14: 40021.9085 | E14: 57762.4379 | F14: 76535.0306 | G14: 82902.4015 | H14: 59147.66 | I14: 56684.5786 | J14: 73228.4785 | K14: 80062.4784 | L14: 85932.5146 | M14: 90365.9202 | N14: 84324.8097 | P14: 839836.813 | R14: 69986.40108
B15: 600 | C15: 54321.7368 | D15: 42678.9421 | E15: 59673.9607 | F15: 72711.9068 | G15: 80750.4016 | H15: 63858.4127 | I15: 60177.7279 | J15: 74645.7685 | K15: 79181.314 | L15: 82193.3256 | M15: 83028.1223 | N15: 79664.6392 | P15: 832886.2582 | R15: 69407.18818
B16: 700 | C16: 53578.4303 | D16: 44014.509 | E16: 57083.2792 | F16: 65530.4552 | G16: 71366.9818 | H16: 62762.077 | I16: 60102.1902 | J16: 68484.5995 | K16: 69768.3946 | L16: 69936.4173 | M16: 68676.9822 | N16: 68258.1069 | P16: 759562.4232 | R16: 63296.8686
B17: 800 | C17: 49540.6442 | D17: 43063.9786 | E17: 52861.6977 | F17: 55891.8671 | G17: 57884.4157 | H17: 58559.8547 | I17: 56822.4327 | J17: 59071.2044 | K17: 57436.0129 | L17: 54976.7763 | M17: 52243.341 | N17: 54219.5889 | P17: 652571.8142 | R17: 54380.98452
B18: 900 | C18: 45089.3074 | D18: 41163.541 | E18: 47466.1646 | F18: 45269.9824 | G18: 44731.7815 | H18: 51684.6805 | I18: 50572.3957 | J18: 47903.7508 | K18: 45316.5034 | L18: 42020.7828 | M18: 38972.0897 | N18: 41395.4898 | P18: 541586.4696 | R18: 45132.2058
B19: 1000 | C19: 39890.5307 | D19: 38459.8846 | E19: 41734.6023 | F19: 36306.5384 | G19: 34355.8872 | H19: 44415.1445 | I19: 43843.5248 | J19: 37693.2582 | K19: 34350.1443 | L19: 31127.4214 | M19: 28158.6811 | N19: 30835.4001 | P19: 441171.0176 | R19: 36764.25147
B20: 1100 | C20: 35523.6869 | D20: 36200.6679 | E20: 36180.3285 | F20: 28102.012 | G20: 24997.4852 | H20: 36828.2939 | I20: 36564.21 | J20: 29935.3985 | K20: 26512.3416 | L20: 23006.8511 | M20: 20129.3611 | N20: 22600.0847 | P20: 356580.7214 | R20: 29715.06012
B21: 1200 | C21: 31062.9478 | D21: 33922.1128 | E21: 30683.0023 | F21: 21934.5961 | G21: 18577.9902 | H21: 29860.9731 | I21: 30873.8139 | J21: 23090.0304 | K21: 20131.8723 | L21: 17264.1208 | M21: 14630.4983 | N21: 16694.2951 | P21: 288726.2531 | R21: 24060.52109
B22: 1300 | C22: 26639.7674 | D22: 31381.9557 | E22: 26162.0312 | F22: 16896.4832 | G22: 13657.7125 | H22: 24079.9956 | I22: 25566.234 | J22: 18305.9608 | K22: 15577.0833 | L22: 12821.5981 | M22: 10690.4702 | N22: 12130.9981 | P22: 233910.2901 | R22: 19492.52417
B23: 1400 | C23: 22628.0905 | D23: 28402.1798 | E23: 21695.1886 | F23: 12925.0828 | G23: 10149.9629 | H23: 19359.7826 | I23: 20714.9263 | J23: 14612.4862 | K23: 12202.157 | L23: 9507.457 | M23: 7653.7496 | N23: 9052.7709 | P23: 188903.8342 | R23: 15741.98618
B24: 1500 | C24: 19117.2358 | D24: 25754.6675 | E24: 17751.9317 | F24: 9457.2645 | G24: 7650.512 | H24: 15733.0153 | I24: 17074.8009 | J24: 11523.0133 | K24: 9399.0805 | L24: 7230.4969 | M24: 5858.6939 | N24: 6585.0301 | P24: 153135.7424 | R24: 12761.31187
B25: 1600 | C25: 16051.7871 | D25: 23066.9464 | E25: 14470.0383 | F25: 7399.573 | G25: 5749.4267 | H25: 12572.8414 | I25: 13952.1125 | J25: 9320.611 | K25: 7608.2588 | L25: 5639.2641 | M25: 4352.4002 | N25: 4991.1338 | P25: 125174.3933 | R25: 10431.19944
B26: 1700 | C26: 13527.0834 | D26: 20273.8624 | E26: 11852.4216 | F26: 5558.5627 | G26: 4418.8852 | H26: 10249.9642 | I26: 11592.9866 | J26: 7560.1815 | K26: 5905.7574 | L26: 4371.5447 | M26: 3247.0212 | N26: 3752.5868 | P26: 102310.8577 | R26: 8525.904808
B27: 1800 | C27: 11176.8367 | D27: 17689.2277 | E27: 9578.1234 | F27: 4185.256 | G27: 3429.5334 | H27: 8253.5917 | I27: 9549.9656 | J27: 6149.2939 | K27: 4604.9764 | L27: 3246.7256 | M27: 2448.3546 | N27: 2924.7606 | P27: 83236.6456 | R27: 6936.387133
B28: 1900 | C28: 9282.3416 | D28: 15064.6912 | E28: 7702.5229 | F28: 3235.9441 | G28: 2644.7306 | H28: 6721.218 | I28: 7961.8907 | J28: 5073.9518 | K28: 3637.269 | L28: 2631.7414 | M28: 1865.7894 | N28: 2277.6483 | P28: 68099.739 | R28: 5674.97825
B29: 2000 | C29: 7456.5804 | D29: 13044.0756 | E29: 6130.6216 | F29: 2596.6882 | G29: 2093.5839 | H29: 5627.5968 | I29: 6789.555 | J29: 4081.5017 | K29: 2993.2324 | L29: 2008.6425 | M29: 1546.9496 | N29: 1751.1819 | P29: 56120.2096 | R29: 4676.684133
B30: 3000 | C30: 31784.9101 | D30: 56153.3641 | E30: 22874.7636 | F30: 8651.5229 | G30: 7546.923 | H30: 23339.9104 | I30: 29189.4278 | J30: 17614.6623 | K30: 12414.44 | L30: 8178.8673 | M30: 5745.1606 | N30: 6567.6378 | P30: 230061.5899 | R30: 19171.79916
B31: 4000 | C31: 6211.0944 | D31: 10182.7336 | E31: 3608.7388 | F31: 1600.1971 | G31: 1558.3842 | H31: 5186.8635 | I31: 7182.0324 | J31: 4470.2641 | K31: 2867.824 | L31: 1846.0242 | M31: 1284.952 | N31: 1495.7147 | P31: 47494.823 | R31: 3957.901917
B32: 5000 | C32: 1684.8377 | D32: 2505.5732 | E32: 1081.1067 | F32: 495.5761 | G32: 515.304 | H32: 1674.4509 | I32: 2518.1305 | J32: 1540.3575 | K32: 1075.448 | L32: 650.376 | M32: 414.3762 | N32: 546.8027 | P32: 14702.3395 | R32: 1225.194958
B33: Over 5,000 | C33: 1350.4725 | D33: 1730.4852 | E33: 896.4374 | F33: 529.0747 | G33: 606.7414 | H33: 1784.6158 | I33: 2498.888 | J33: 1641.7627 | K33: 1248.4773 | L33: 915.579 | M33: 641.5388 | N33: 587.0402 | P33: 14431.113 | R33: 1202.59275
B35: Total bills | C35: =SUM(C5:C33) -> 668264.2694 | D35: =SUM(D5:D33) -> 670073.2481 | E35: 673079.5412 | F35: 672925.6508 | G35: 675197.7457 | H35: 678477.4002 | I35: 679097.6983 | J35: 677527.3247 | K35: 677759.6881 | L35: 670461.5022 | M35: 667198.6094 | N35: 669011.3373 | P35: 8079074.015

Sheet Assumptions
A1: Assumptions:
A3: Assumed kWh usage in "Single Bills" tab to be the midpoint of the kWh range.
A5: Assumed the average kWh usage for the "Over 5000kWh" range as follows:
B6: Monthly usage numbers were derived by taking a simple average of the kWh used by the number of bills for a specific month, according to the bill frequency data from OCS data request 3.37:
C7: month | D7: average kWh
C8: July | D8: ='[1]Sch 1'!D37/'[1]Sch 1'!C37 -> 7305.120985
C9: August | D9: ='[1]Sch 1'!D66/'[1]Sch 1'!C66 -> 7145.599396
C10: Sept | D10: ='[1]Sch 1'!D95/'[1]Sch 1'!C95 -> 7635.699938
C11: Oct | D11: ='[1]Sch 1'!D124/'[1]Sch 1'!C124 -> 7916.976563
C12: Nov | D12: ='[1]Sch 1'!D153/'[1]Sch 1'!C153 -> 8129.310115
C13: Dec | D13: ='[1]Sch 1'!D182/'[1]Sch 1'!C182 -> 8196.928997
C14: Jan | D14: ='[1]Sch 1'!D211/'[1]Sch 1'!C211 -> 8097.494566
C15: Feb | D15: ='[1]Sch 1'!D240/'[1]Sch 1'!C240 -> 8264.342953
C16: Mar | D16: ='[1]Sch 1'!D269/'[1]Sch 1'!C269 -> 8631.149321
C17: April | D17: ='[1]Sch 1'!D298/'[1]Sch 1'!C298 -> 8976.528514
C18: May | D18: ='[1]Sch 1'!D327/'[1]Sch 1'!C327 -> 8755.556172
C19: June | D19: ='[1]Sch 1'!D356/'[1]Sch 1'!C356 -> 8257.83822
B20: Taking another simple average of these numbers gave an average usage of: | I20: =SUM(D8:D19)/12 -> 8109.378812 | J20: kWh/month.
B21: For simplicity, the model will assume the average usage above 5000 kWh per month is 8000 kWh/month.
A23: On the "Reduced Usage Scenario" data, to use the correct energy rate, it will need to be re-entered manually after the drop in usage is factored in. This is only applicable if there is a new rate for that usage amount
A25: The bills can be split up evenly by fraction of the year. IE billing rates for May-Sept. can be 5/12 of the year and Oct-April can be 7/12ths of the year.

Sheet Sheet1
